[Event "Mistrovství Čech mládeže 2023 - HD14"]
[Site "Harrachov, Czech Republic"]
[Date "2023.10.26"]
[Round "7.2"]
[White "Švadlenka, Dominik"]
[Black "Topenčík, Bruno"]
[Result "1/2-1/2"]
[TimeControl "90m + 30s"]
[WhiteElo "1710"]
[BlackElo "1832"]

1. d4 {[%clk 01:30:58]} d5 {[%clk 01:30:53]} {[%emt 00:00:07]} 2. c4 {[%clk
01:31:24]} {[%emt 00:00:04]} e6 {[%clk 01:31:20]} {[%emt 00:00:03]} 3. Nc3
{[%clk 01:31:50]} {[%emt 00:00:04]} Bb4 {[%clk 01:31:46]} {[%emt 00:00:04]} 4.
Nf3 {[%clk 01:31:31]} {[%emt 00:00:49]} dxc4 {[%clk 01:32:05]} {[%emt
00:00:11]} 5. a4 {[%clk 01:31:42]} {[%emt 00:00:19]} c6 {[%clk 01:31:10]}
{[%emt 00:01:25]} 6. e3 {[%clk 01:31:53]} {[%emt 00:00:19]} b5 {[%clk
01:30:44]} {[%emt 00:00:55]} 7. Bd2 {[%clk 01:31:34]} {[%emt 00:00:50]} a5
{[%clk 01:29:26]} {[%emt 00:01:48]} 8. Be2 {[%clk 01:25:51]} {[%emt 00:06:12]}
Bb7 {[%clk 01:25:32]} {[%emt 00:04:25]} 9. O-O {[%clk 01:25:34]} {[%emt
00:00:47]} Bxc3 {[%clk 01:13:28]} {[%emt 00:12:34]} 10. bxc3 {[%clk 01:23:16]}
{[%emt 00:02:48]} Nd7 {[%clk 01:11:17]} {[%emt 00:02:40]} 11. Qb1 {[%clk
01:20:50]} {[%emt 00:02:56]} Ba6 {[%clk 01:03:35]} {[%emt 00:08:11]} 12. Qa2
{[%clk 01:19:40]} {[%emt 00:01:41]} Nb6 {[%clk 01:03:36]} {[%emt 00:00:29]} 13.
axb5 {[%clk 01:19:29]} {[%emt 00:00:42]} Bxb5 {[%clk 01:03:43]} {[%emt
00:00:23]} 14. Ne5 {[%clk 01:18:50]} {[%emt 00:01:09]} Nf6 {[%clk 00:57:35]}
{[%emt 00:06:37]} 15. f3 {[%clk 01:02:53]} {[%emt 00:16:27]} O-O {[%clk
00:51:53]} {[%emt 00:06:12]} 16. Rfb1 {[%clk 00:59:55]} {[%emt 00:03:29]} Nfd7
{[%clk 00:47:09]} {[%emt 00:05:12]} 17. Nxc4 {[%clk 00:54:48]} {[%emt
00:05:39]} Nxc4 {[%clk 00:46:48]} {[%emt 00:00:52]} 18. Bxc4 {[%clk 00:55:11]}
{[%emt 00:00:07]} Bxc4 {[%clk 00:47:11]} {[%emt 00:00:07]} 19. Qxc4 {[%clk
00:55:37]} {[%emt 00:00:04]} Qc7 {[%clk 00:47:10]} {[%emt 00:00:30]} 20. Be1
{[%clk 00:52:29]} {[%emt 00:03:39]} Rfb8 {[%clk 00:43:50]} {[%emt 00:03:50]} 21.
Bg3 {[%clk 00:47:01]} {[%emt 00:05:58]} Rxb1+ {[%clk 00:42:24]} {[%emt
00:01:56]} 22. Rxb1 {[%clk 00:47:24]} {[%emt 00:00:07]} Qc8 {[%clk 00:42:46]}
{[%emt 00:00:06]} 23. h3 {[%clk 00:43:17]} {[%emt 00:04:39]} h6 {[%clk
00:42:14]} {[%emt 00:01:02]} 24. e4 {[%clk 00:42:19]} {[%emt 00:01:28]} Qa6
{[%clk 00:41:43]} {[%emt 00:01:00]} 25. Qxa6 {[%clk 00:38:58]} {[%emt
00:03:52]} Rxa6 {[%clk 00:42:06]} {[%emt 00:00:07]} 26. Kf2 {[%clk 00:35:52]}
{[%emt 00:03:36]} Kf8 {[%clk 00:33:50]} {[%emt 00:08:46]} 27. Ke2 {[%clk
00:36:00]} {[%emt 00:00:22]} Ke7 {[%clk 00:33:31]} {[%emt 00:00:49]} 28. Bc7
{[%clk 00:34:31]} {[%emt 00:01:59]} Ra7 {[%clk 00:32:07]} {[%emt 00:01:51]} 29.
Bf4 {[%clk 00:34:42]} {[%emt 00:00:21]} Kd8 {[%clk 00:29:59]} {[%emt 00:02:37]}
30. Kd3 {[%clk 00:33:21]} {[%emt 00:01:51]} Kc8 {[%clk 00:30:16]} {[%emt
00:00:13]} 31. c4 {[%clk 00:32:32]} {[%emt 00:01:20]} Rb7 {[%clk 00:23:47]}
{[%emt 00:06:58]} 32. Rxb7 {[%clk 00:29:43]} {[%emt 00:03:19]} Kxb7 {[%clk
00:24:06]} {[%emt 00:00:11]} 33. c5 {[%clk 00:29:08]} {[%emt 00:01:05]} a4
{[%clk 00:12:50]} {[%emt 00:11:46]} 34. Kc4 {[%clk 00:26:02]} {[%emt 00:03:36]}
a3 {[%clk 00:12:32]} {[%emt 00:00:48]} 35. Kb3 {[%clk 00:24:49]} {[%emt
00:01:43]} Ka6 {[%clk 00:12:42]} {[%emt 00:00:20]} 36. Kxa3 {[%clk 00:24:41]}
{[%emt 00:00:39]} Kb5 {[%clk 00:13:03]} {[%emt 00:00:09]} 37. Kb3 {[%clk
00:25:02]} {[%emt 00:00:09]} f6 {[%clk 00:11:02]} {[%emt 00:02:31]} 38. Kc3
{[%clk 00:22:19]} {[%emt 00:03:13]} e5 {[%clk 00:10:26]} {[%emt 00:01:06]} 39.
dxe5 {[%clk 00:20:08]} {[%emt 00:02:41]} fxe5 {[%clk 00:10:45]} {[%emt
00:00:11]} 40. Be3 {[%clk 00:20:27]} {[%emt 00:00:10]} Nxc5 {[%clk 00:10:52]}
{[%emt 00:00:23]} 41. Bf2 {[%clk 00:12:56]} {[%emt 00:08:01]} Nd7 {[%clk
00:09:10]} {[%emt 00:02:12]} 42. h4 {[%clk 00:12:26]} {[%emt 00:01:00]} Ka6
{[%clk 00:05:58]} {[%emt 00:03:43]} 43. Kc4 {[%clk 00:10:37]} {[%emt 00:02:19]}
Kb7 {[%clk 00:06:12]} {[%emt 00:00:16]} 44. g3 {[%clk 00:09:46]} {[%emt
00:01:21]} Kc7 {[%clk 00:05:08]} {[%emt 00:01:34]} 45. Be1 {[%clk 00:06:38]}
{[%emt 00:03:38]} Kd6 {[%clk 00:05:07]} {[%emt 00:00:31]} 46. Bc3 {[%clk
00:06:21]} {[%emt 00:00:47]} Ke6 {[%clk 00:04:05]} {[%emt 00:01:33]} 47. Bb4
{[%clk 00:05:14]} {[%emt 00:01:37]} Kf6 {[%clk 00:03:50]} {[%emt 00:00:42]} 48.
Ba5 {[%clk 00:05:27]} {[%emt 00:00:19]} Ke6 {[%clk 00:03:43]} {[%emt 00:00:37]}
49. Bc7 {[%clk 00:05:40]} {[%emt 00:00:18]} Kf6 {[%clk 00:03:41]} {[%emt
00:00:32]} 50. f4 {[%clk 00:02:08]} {[%emt 00:04:02]} h5 {[%clk 00:00:42]}
{[%emt 00:03:29]} 51. Kd3 {[%clk 00:02:03]} {[%emt 00:00:27]} g6 {[%clk
00:00:35]} {[%emt 00:00:45]} 52. Ke3 {[%clk 00:01:53]} {[%emt 00:00:40]} Ke6
{[%clk 00:00:41]} {[%emt 00:00:23]} 53. Kd3 {[%clk 00:01:36]} {[%emt 00:00:47]}
Nc5+ {[%clk 00:00:47]} {[%emt 00:00:24]} 54. Ke3 {[%clk 00:01:34]} {[%emt
00:00:32]} Nd7 {[%clk 00:01:16]} {[%emt 00:00:02]} 55. Ke2 {[%clk 00:01:26]}
{[%emt 00:00:38]} Kf6 {[%clk 00:01:31]} {[%emt 00:00:15]} 56. Kf3 {[%clk
00:01:35]} {[%emt 00:00:21]} Ke6 {[%clk 00:01:47]} {[%emt 00:00:13]} 57. Ke3
{[%clk 00:01:46]} {[%emt 00:00:18]} Kf6 {[%clk 00:02:05]} {[%emt 00:00:12]} 58.
Ba5 {[%clk 00:01:32]} {[%emt 00:00:46]} Ke6 {[%clk 00:02:02]} {[%emt 00:00:32]}
59. Bb4 {[%clk 00:01:30]} {[%emt 00:00:32]} Kf6 {[%clk 00:02:08]} {[%emt
00:00:24]} 60. Kd3 {[%clk 00:01:50]} {[%emt 00:00:10]} Ke6 {[%clk 00:02:24]}
{[%emt 00:00:13]} 61. Ba3 {[%clk 00:02:00]} {[%emt 00:00:21]} Kf6 {[%clk
00:02:15]} {[%emt 00:00:43]} 62. Kc4 {[%clk 00:02:13]} {[%emt 00:00:18]} Ke6
{[%clk 00:02:27]} {[%emt 00:00:18]} 63. Bb2 {[%clk 00:02:22]} {[%emt 00:00:21]}
Kf6 {[%clk 00:01:29]} {[%emt 00:01:28]} 64. fxe5+ {[%clk 00:01:27]} {[%emt
00:01:26]} Nxe5+ {[%clk 00:01:34]} {[%emt 00:00:24]} 65. Kc5 {[%clk 00:01:42]}
{[%emt 00:00:15]} Ke6 {[%clk 00:01:49]} {[%emt 00:00:14]} 66. Bc3 {[%clk
00:02:06]} {[%emt 00:00:08]} Nd3+ {[%clk 00:02:01]} {[%emt 00:00:18]} 67. Kd4
{[%clk 00:01:04]} {[%emt 00:01:31]} Ne5 {[%clk 00:01:39]} {[%emt 00:00:51]} 68.
Ba5 {[%clk 00:00:54]} {[%emt 00:00:41]} Nd7 {[%clk 00:01:00]} {[%emt 00:01:09]}
69. Bc7 {[%clk 00:01:12]} {[%emt 00:00:12]} Nf6 {[%clk 00:01:08]} {[%emt
00:00:22]} 70. Bf4 {[%clk 00:01:11]} {[%emt 00:00:31]} Nd7 {[%clk 00:01:16]}
{[%emt 00:00:22]} 71. Bg5 {[%clk 00:00:51]} {[%emt 00:00:50]} Ne5 {[%clk
00:01:30]} {[%emt 00:00:15]} 72. Bf4 {[%clk 00:00:45]} {[%emt 00:00:36]} Nd7
{[%clk 00:01:44]} {[%emt 00:00:16]} 73. Bh6 {[%clk 00:00:59]} {[%emt 00:00:16]}
Ne5 {[%clk 00:01:35]} {[%emt 00:00:38]} 1/2-1/2

[Event "Mistrovství Čech mládeže 2023 - HD14"]
[Site "Harrachov, Czech Republic"]
[Date "2023.10.26"]
[Round "7.3"]
[White "Křivka, Matěj"]
[Black "Bělaška, Václav"]
[Result "1/2-1/2"]
[TimeControl "90m + 30s"]
[WhiteElo "1665"]
[BlackElo "1666"]

1. e4 {[%clk 01:30:57]} {[%emt 00:00:02]} d5 {[%clk 01:30:33]} {[%emt
00:00:27]} 2. exd5 {[%clk 01:31:07]} {[%emt 00:00:20]} Nf6 {[%clk 01:30:58]}
{[%emt 00:00:05]} 3. d4 {[%clk 01:30:59]} {[%emt 00:00:38]} Bg4 {[%clk
01:31:18]} {[%emt 00:00:11]} 4. Bb5+ {[%clk 01:30:05]} {[%emt 00:01:24]} c6
{[%clk 01:31:32]} {[%emt 00:00:16]} 5. dxc6 {[%clk 01:21:13]} {[%emt 00:09:22]}
Nxc6 {[%clk 01:30:44]} {[%emt 00:01:18]} 6. Nf3 {[%clk 01:17:43]} {[%emt
00:04:00]} e6 {[%clk 01:29:53]} {[%emt 00:01:21]} 7. O-O {[%clk 01:16:15]}
{[%emt 00:01:58]} Qc7 {[%clk 01:28:22]} {[%emt 00:02:01]} 8. c4 {[%clk
01:10:49]} {[%emt 00:05:56]} O-O-O {[%clk 01:27:57]} {[%emt 00:00:56]} 9. Bxc6
{[%clk 01:09:31]} {[%emt 00:01:48]} Qxc6 {[%clk 01:24:56]} {[%emt 00:03:31]} 10.
Ne5 {[%clk 01:05:05]} {[%emt 00:04:56]} Bxd1 {[%clk 01:22:22]} {[%emt
00:03:04]} 11. Nxc6 {[%clk 01:05:25]} {[%emt 00:00:10]} bxc6 {[%clk 01:22:45]}
{[%emt 00:00:07]} 12. Rxd1 {[%clk 01:05:34]} {[%emt 00:00:20]} e5 {[%clk
01:21:28]} {[%emt 00:01:48]} 13. Be3 {[%clk 00:55:38]} {[%emt 00:10:25]} Bc5
{[%clk 01:21:28]} {[%emt 00:00:30]} 14. Nd2 {[%clk 00:49:03]} {[%emt 00:07:05]}
Bxd4 {[%clk 01:08:54]} {[%emt 00:13:05]} 15. Bxd4 {[%clk 00:45:14]} {[%emt
00:04:19]} Rxd4 {[%clk 01:03:24]} {[%emt 00:06:00]} 16. Nf3 {[%clk 00:44:54]}
{[%emt 00:00:49]} Rxd1+ {[%clk 01:01:13]} {[%emt 00:02:41]} 17. Rxd1 {[%clk
00:45:17]} {[%emt 00:00:07]} Re8 {[%clk 01:00:23]} {[%emt 00:01:21]} 18. Re1
{[%clk 00:44:55]} {[%emt 00:00:52]} 1/2-1/2

[Event "Mistrovství Čech mládeže 2023 - HD14"]
[Site "Harrachov, Czech Republic"]
[Date "2023.10.26"]
[Round "7.4"]
[White "Švadlenka, Michal"]
[Black "Jakubše, Tamae Severína"]
[Result "1-0"]
[TimeControl "90m + 30s"]
[WhiteElo "1651"]
[BlackElo "1627"]

1. e4 {[%clk 01:30:58]} e5 {[%clk 01:30:57]} {[%emt 00:00:04]} 2. Nf3 {[%clk
01:31:22]} {[%emt 00:00:06]} Nc6 {[%clk 01:31:23]} {[%emt 00:00:04]} 3. Bb5
{[%clk 01:31:44]} {[%emt 00:00:09]} f5 {[%clk 01:31:44]} {[%emt 00:00:09]} 4.
Nc3 {[%clk 01:32:01]} {[%emt 00:00:13]} fxe4 {[%clk 01:30:38]} {[%emt
00:01:36]} 5. Nxe4 {[%clk 01:32:07]} {[%emt 00:00:24]} Nf6 {[%clk 01:30:38]}
{[%emt 00:00:30]} 6. Nxf6+ {[%clk 01:32:32]} {[%emt 00:00:05]} Qxf6 {[%clk
01:30:39]} {[%emt 00:00:29]} 7. Qe2 {[%clk 01:32:16]} {[%emt 00:00:46]} Bd6
{[%clk 01:28:14]} {[%emt 00:02:54]} 8. d4 {[%clk 01:28:44]} {[%emt 00:04:02]}
O-O {[%clk 01:26:53]} {[%emt 00:01:51]} 9. Bxc6 {[%clk 01:21:46]} {[%emt
00:07:29]} bxc6 {[%clk 01:22:19]} {[%emt 00:05:04]} 10. dxe5 {[%clk 01:21:00]}
{[%emt 00:01:16]} Bxe5 {[%clk 01:18:37]} {[%emt 00:04:11]} 11. Qxe5 {[%clk
01:18:50]} {[%emt 00:02:40]} Qxe5+ {[%clk 01:18:49]} {[%emt 00:00:18]} 12. Nxe5
{[%clk 01:19:00]} {[%emt 00:00:20]} Re8 {[%clk 01:19:12]} {[%emt 00:00:07]} 13.
Bf4 {[%clk 01:17:36]} {[%emt 00:01:54]} d6 {[%clk 01:19:24]} {[%emt 00:00:19]}
14. O-O-O {[%clk 01:14:33]} {[%emt 00:03:33]} dxe5 {[%clk 01:18:02]} {[%emt
00:01:52]} 15. Rde1 {[%clk 01:12:59]} {[%emt 00:02:04]} e4 {[%clk 01:08:04]}
{[%emt 00:10:27]} 16. Bxc7 {[%clk 01:12:04]} {[%emt 00:01:25]} Bf5 {[%clk
01:06:06]} {[%emt 00:02:28]} 17. Re3 {[%clk 01:11:42]} {[%emt 00:00:52]} Bg6
{[%clk 01:03:33]} {[%emt 00:03:03]} 18. Rd1 {[%clk 01:09:08]} {[%emt 00:03:04]}
Rf8 {[%clk 00:58:02]} {[%emt 00:06:00]} 19. Rd2 {[%clk 01:06:13]} {[%emt
00:03:26]} Rf5 {[%clk 00:48:03]} {[%emt 00:10:29]} 20. c4 {[%clk 00:55:43]}
{[%emt 00:11:00]} a5 {[%clk 00:42:46]} {[%emt 00:05:47]} 21. b3 {[%clk
00:52:47]} {[%emt 00:03:27]} a4 {[%clk 00:39:06]} {[%emt 00:04:10]} 22. b4
{[%clk 00:50:10]} {[%emt 00:03:08]} Rf7 {[%clk 00:35:30]} {[%emt 00:04:04]} 23.
Bb6 {[%clk 00:44:46]} {[%emt 00:05:55]} Rb7 {[%clk 00:26:53]} {[%emt 00:09:06]}
24. Bc5 {[%clk 00:44:48]} {[%emt 00:00:29]} Re8 {[%clk 00:25:51]} {[%emt
00:01:31]} 25. Kb2 {[%clk 00:36:59]} {[%emt 00:08:20]} Re5 {[%clk 00:16:18]}
{[%emt 00:10:03]} 26. Ka3 {[%clk 00:32:39]} {[%emt 00:04:50]} h6 {[%clk
00:14:15]} {[%emt 00:02:33]} 27. Kxa4 {[%clk 00:31:22]} {[%emt 00:01:47]} Bf7
{[%clk 00:13:28]} {[%emt 00:01:18]} 28. Rd4 {[%clk 00:31:11]} {[%emt 00:00:41]}
Rf5 {[%clk 00:12:56]} {[%emt 00:01:02]} 29. Rexe4 {[%clk 00:30:20]} {[%emt
00:01:20]} Bg6 {[%clk 00:07:47]} {[%emt 00:05:39]} 30. Re2 {[%clk 00:19:04]}
{[%emt 00:11:46]} Rbf7 {[%clk 00:06:03]} {[%emt 00:02:14]} 31. f3 {[%clk
00:18:47]} {[%emt 00:00:47]} Rf4 {[%clk 00:06:06]} {[%emt 00:00:26]} 32. Kb3
{[%clk 00:18:35]} {[%emt 00:00:42]} Rxd4 {[%clk 00:04:42]} {[%emt 00:01:53]} 33.
Bxd4 {[%clk 00:19:00]} {[%emt 00:00:06]} Rf4 {[%clk 00:04:27]} {[%emt
00:00:46]} 34. Be5 {[%clk 00:14:58]} {[%emt 00:04:33]} Rf7 {[%clk 00:03:51]}
{[%emt 00:01:05]} 35. Rd2 {[%clk 00:14:09]} {[%emt 00:01:19]} Re7 {[%clk
00:03:30]} {[%emt 00:00:51]} 36. f4 {[%clk 00:14:29]} {[%emt 00:00:10]} Rb7
{[%clk 00:03:48]} {[%emt 00:00:12]} 37. a4 {[%clk 00:14:29]} {[%emt 00:00:30]}
Kf7 {[%clk 00:03:13]} {[%emt 00:01:05]} 38. b5 {[%clk 00:13:04]} {[%emt
00:01:55]} Ke8 {[%clk 00:02:34]} {[%emt 00:01:08]} 39. Kb4 {[%clk 00:12:39]}
{[%emt 00:00:55]} Bf7 {[%clk 00:02:15]} {[%emt 00:00:49]} 40. a5 {[%clk
00:12:44]} {[%emt 00:00:25]} cxb5 {[%clk 00:02:17]} {[%emt 00:00:28]} 41. cxb5
{[%clk 00:13:09]} {[%emt 00:00:05]} Be6 {[%clk 00:02:09]} {[%emt 00:00:37]} 42.
Kc5 {[%clk 00:13:05]} {[%emt 00:00:34]} Bd7 {[%clk 00:02:25]} {[%emt 00:00:14]}
43. b6 {[%clk 00:13:19]} {[%emt 00:00:16]} 1-0

[Event "Mistrovství Čech mládeže 2023 - HD14"]
[Site "Harrachov, Czech Republic"]
[Date "2023.10.26"]
[Round "7.5"]
[White "Migalko, Dmitriy"]
[Black "Kravchenko, Andrey"]
[Result "1/2-1/2"]
[TimeControl "90m + 30s"]
[WhiteElo "1842"]
[BlackElo "1541"]

1. e4 {[%clk 01:30:55]} {[%emt 00:00:05]} c5 {[%clk 01:30:55]} {[%emt
00:00:05]} 2. Nf3 {[%clk 01:31:17]} {[%emt 00:00:07]} Nc6 {[%clk 01:30:47]}
{[%emt 00:00:39]} 3. Bb5 {[%clk 01:29:37]} {[%emt 00:02:11]} e6 {[%clk
01:28:52]} {[%emt 00:02:24]} 4. O-O {[%clk 01:28:41]} {[%emt 00:01:25]} Nf6
{[%clk 01:27:16]} {[%emt 00:02:05]} 5. Re1 {[%clk 01:23:16]} {[%emt 00:05:56]}
Be7 {[%clk 01:26:37]} {[%emt 00:01:08]} 6. c3 {[%clk 01:22:50]} {[%emt
00:00:56]} O-O {[%clk 01:25:39]} {[%emt 00:01:29]} 7. e5 {[%clk 01:18:37]}
{[%emt 00:04:44]} Nd5 {[%clk 01:25:51]} {[%emt 00:00:18]} 8. Bxc6 {[%clk
01:18:09]} {[%emt 00:00:58]} dxc6 {[%clk 01:25:42]} {[%emt 00:00:38]} 9. d4
{[%clk 01:15:56]} {[%emt 00:02:44]} cxd4 {[%clk 01:25:44]} {[%emt 00:00:27]} 10.
Qxd4 {[%clk 01:15:42]} {[%emt 00:00:44]} Qb6 {[%clk 01:21:18]} {[%emt
00:04:55]} 11. Qxb6 {[%clk 01:12:13]} {[%emt 00:04:00]} axb6 {[%clk 01:15:19]}
{[%emt 00:06:29]} 12. Bg5 {[%clk 01:07:08]} {[%emt 00:05:35]} Bxg5 {[%clk
01:13:00]} {[%emt 00:02:49]} 13. Nxg5 {[%clk 01:07:31]} {[%emt 00:00:07]} Rd8
{[%clk 01:13:01]} {[%emt 00:00:28]} 14. Rd1 {[%clk 01:07:21]} {[%emt 00:00:40]}
Bd7 {[%clk 01:09:25]} {[%emt 00:04:06]} 15. Na3 {[%clk 01:04:42]} {[%emt
00:03:09]} b5 {[%clk 00:46:46]} {[%emt 00:23:10]} 16. c4 {[%clk 00:59:32]}
{[%emt 00:05:40]} Nb6 {[%clk 00:35:22]} {[%emt 00:11:54]} 17. cxb5 {[%clk
00:41:50]} {[%emt 00:18:13]} cxb5 {[%clk 00:35:40]} {[%emt 00:00:11]} 18. Ne4
{[%clk 00:37:50]} {[%emt 00:04:29]} Nc4 {[%clk 00:29:21]} {[%emt 00:06:50]} 19.
Nxc4 {[%clk 00:35:38]} {[%emt 00:02:42]} bxc4 {[%clk 00:29:47]} {[%emt
00:00:05]} 20. Nd6 {[%clk 00:32:48]} {[%emt 00:03:20]} Bc6 {[%clk 00:28:12]}
{[%emt 00:02:05]} 21. Rd4 {[%clk 00:31:12]} {[%emt 00:02:04]} Bd5 {[%clk
00:20:00]} {[%emt 00:08:43]} 22. a3 {[%clk 00:21:05]} {[%emt 00:10:39]} Kf8
{[%clk 00:19:42]} {[%emt 00:00:46]} 23. Rc1 {[%clk 00:18:20]} {[%emt 00:03:17]}
Ke7 {[%clk 00:15:26]} {[%emt 00:04:44]} 24. Nxc4 {[%clk 00:16:45]} {[%emt
00:02:06]} Rac8 {[%clk 00:14:40]} {[%emt 00:01:15]} 25. f4 {[%clk 00:13:08]}
{[%emt 00:04:08]} b5 {[%clk 00:13:27]} {[%emt 00:01:44]} 26. b3 {[%clk
00:13:19]} {[%emt 00:00:19]} bxc4 {[%clk 00:13:31]} {[%emt 00:00:26]} 27. bxc4
{[%clk 00:13:37]} {[%emt 00:00:12]} Bc6 {[%clk 00:13:44]} {[%emt 00:00:17]} 28.
Rxd8 {[%clk 00:12:53]} {[%emt 00:01:15]} Rxd8 {[%clk 00:14:05]} {[%emt
00:00:09]} 29. Rc2 {[%clk 00:12:41]} {[%emt 00:00:42]} Ra8 {[%clk 00:13:47]}
{[%emt 00:00:47]} 30. Rc3 {[%clk 00:12:57]} {[%emt 00:00:14]} f6 {[%clk
00:13:14]} {[%emt 00:01:03]} 31. exf6+ {[%clk 00:12:56]} {[%emt 00:00:32]} Kxf6
{[%clk 00:12:53]} {[%emt 00:00:51]} 32. g4 {[%clk 00:13:12]} {[%emt 00:00:13]}
g5 {[%clk 00:12:08]} {[%emt 00:01:15]} 33. fxg5+ {[%clk 00:13:18]} {[%emt
00:00:25]} Kxg5 {[%clk 00:12:28]} {[%emt 00:00:10]} 34. Re3 {[%clk 00:13:36]}
{[%emt 00:00:12]} Kf6 {[%clk 00:11:40]} {[%emt 00:01:18]} 35. Kf2 {[%clk
00:13:47]} {[%emt 00:00:19]} Ra4 {[%clk 00:11:39]} {[%emt 00:00:31]} 36. Rc3
{[%clk 00:13:25]} {[%emt 00:00:52]} Kg5 {[%clk 00:11:12]} {[%emt 00:00:55]} 37.
Kg3 {[%clk 00:13:36]} {[%emt 00:00:20]} h5 {[%clk 00:10:33]} {[%emt 00:01:09]}
38. gxh5 {[%clk 00:09:24]} {[%emt 00:04:43]} Kxh5 {[%clk 00:10:57]} {[%emt
00:00:06]} 39. Re3 {[%clk 00:07:38]} {[%emt 00:02:16]} Rxc4 {[%clk 00:09:22]}
{[%emt 00:02:05]} 40. Re5+ {[%clk 00:07:25]} {[%emt 00:00:43]} Kg6 {[%clk
00:09:17]} {[%emt 00:00:33]} 41. Rxe6+ {[%clk 00:07:46]} {[%emt 00:00:11]} Kf5
{[%clk 00:09:21]} {[%emt 00:00:25]} 42. Rd6 {[%clk 00:06:48]} {[%emt 00:01:29]}
Rg4+ {[%clk 00:09:08]} {[%emt 00:00:43]} 43. Kf2 {[%clk 00:07:01]} {[%emt
00:00:18]} Rg2+ {[%clk 00:09:09]} {[%emt 00:00:28]} 44. Ke3 {[%clk 00:07:06]}
{[%emt 00:00:23]} Rxh2 {[%clk 00:08:42]} {[%emt 00:00:59]} 45. Rxc6 {[%clk
00:07:06]} {[%emt 00:00:32]} Rh3+ {[%clk 00:09:03]} {[%emt 00:00:09]} 1/2-1/2